fUSD/lending_fUSD_20250628
["ID","MTS","AMOUNT","RATE_DAILY","PERIOD"]
[368337087,1751127091353,-210.14,0.00033423,9]
[368337088,1751127091363,-490.0,0.00033423,9]
[368337089,1751127091375,-1176.69,0.00033423,9]
[368337090,1751127091385,-1075.47,0.00033423,9]
[368337091,1751127091394,-490.0,0.00033423,9]
[368337092,1751127091404,-688.03,0.00033423,9]
[368337093,1751127091413,-490.0,0.00033423,9]
[368337094,1751127091423,-490.0,0.00033423,9]
[368337095,1751127091434,-529.89,0.00033423,9]
[368337096,1751127091444,-490.0,0.00033423,9]
[368337097,1751127091454,-776.12,0.00033423,9]
[368337098,1751127091465,-490.0,0.00033423,9]
[368337099,1751127091474,-1287.13,0.00033423,9]
[368337100,1751127091484,-490.0,0.00033423,9]
[368337101,1751127091493,-490.0,0.00033423,9]
[368337102,1751127091502,-490.0,0.00033423,9]
[368337103,1751127091512,-519.0,0.00033423,9]
[368337104,1751127091522,-490.0,0.00033423,9]
[368337105,1751127091532,-490.0,0.00033423,9]
[368337106,1751127091541,-490.0,0.00033423,9]
[368337107,1751127091551,-238.15,0.00033423,9]
[368337108,1751127091560,-490.0,0.00033423,9]
[368337109,1751127091570,-490.0,0.00033423,9]
[368337110,1751127091579,-490.0,0.00033423,9]
[368337111,1751127091588,-2039.39,0.00033423,9]
[368337112,1751127091598,-543.97,0.00033423,9]
[368337113,1751127091608,-227.60782589,0.00033423,9]
[368337114,1751127091618,-490.0,0.00033423,9]
[368337115,1751127091627,-588.87024145,0.00033423,9]
[368337116,1751127091636,-1032.02,0.00033423,9]
[368337117,1751127091646,-835.31,0.00033423,9]
[368337118,1751127091656,-490.0,0.00033423,9]
[368337119,1751127091665,-955.27,0.00033423,9]
[368337120,1751127091674,-490.0,0.00033423,9]
[368337121,1751127091683,-490.0,0.00033423,9]
[368337122,1751127091694,-634.12,0.00033423,9]
[368337123,1751127091704,-1983.49,0.00033423,9]
[368337124,1751127091713,-490.0,0.00033423,9]
[368337125,1751127091722,-567.9,0.00033423,9]
[368337126,1751127091731,-490.0,0.00033423,9]
[368337127,1751127091740,-1131.2,0.00033423,9]
[368337128,1751127091749,-490.0,0.00033423,9]
[368337129,1751127091759,-490.0,0.00033423,9]
[368337130,1751127091768,-1007.05,0.00033423,9]
[368337131,1751127091778,-1439.67,0.00033423,9]
[368337132,1751127091787,-663.27,0.00033423,9]
[368337133,1751127091797,-262.24352615,0.00033423,9]
[368337134,1751127091806,-490.0,0.00033423,9]
[368337135,1751127091816,-490.0,0.00033423,9]
[368337136,1751127091826,-1134.06,0.00033423,9]
[368337137,1751127091836,-611.28,0.00033423,9]
[368337138,1751127091846,-1774.05,0.00033423,9]
[368337139,1751127091855,-1393.8,0.00033423,9]
[368337140,1751127091865,-588.34,0.00033423,9]
[368337141,1751127091875,-720.46,0.00033423,9]
[368337142,1751127091885,-510.0,0.00033423,9]
[368337143,1751127091895,-536.12,0.00033423,9]
[368337144,1751127091904,-1542.14,0.00033423,9]
[368337145,1751127091914,-490.0,0.00033423,9]
[368337146,1751127091923,-490.0,0.00033423,9]
[368337147,1751127091933,-590.78,0.00033423,9]
[368337148,1751127091944,-596.38260357,0.00033423,9]
[368337149,1751127091953,-490.0,0.00033423,9]
[368337150,1751127091962,-330.64,0.00033423,9]
[368337151,1751127091971,-620.36,0.00033423,9]
[368337152,1751127091981,-2456.76,0.00033423,9]
[368337153,1751127091990,-776.94,0.00033423,9]
[368337154,1751127092001,-558.12,0.00033423,9]
[368337155,1751127092010,-1690.62,0.00033423,9]
[368337156,1751127092021,-1227.1,0.00033423,9]
[368337157,1751127092030,-509.26,0.00033423,9]
[368337158,1751127092039,-490.0,0.00033423,9]
[368337159,1751127092048,-2322.24,0.00033423,9]
[368337160,1751127092058,-1761.03,0.00033423,9]
[368337161,1751127092068,-1414.4,0.00033423,9]
[368337162,1751127092077,-503.53,0.00033423,9]
[368337163,1751127092087,-862.98,0.00033423,9]
[368337164,1751127092097,-490.0,0.00033423,9]
[368337165,1751127092107,-2730.6,0.00033423,9]
[368337166,1751127092116,-1553.67,0.00033423,9]
[368337167,1751127092125,-969.59,0.00033423,9]
[368337168,1751127092135,-586.07,0.00033423,9]
[368337169,1751127092145,-490.0,0.00033423,9]
[368337170,1751127092154,-1069.27,0.00033423,9]
[368337171,1751127092164,-734.06,0.00033423,9]
[368337172,1751127092173,-1270.58,0.00033423,9]
[368337173,1751127092183,-973.61,0.00033423,9]
[368337174,1751127092194,-490.0,0.00033423,9]
[368337175,1751127092203,-470.16135843,0.00033423,9]
[368337176,1751127092213,-490.0,0.00033423,9]
[368337177,1751127092222,-973.79,0.00033423,9]
[368337178,1751127092231,-532.27,0.00033423,9]
[368337179,1751127092241,-1403.31,0.00033423,9]
[368337180,1751127092250,-524.8,0.00033423,9]
[368337181,1751127092260,-490.0,0.00033423,9]
[368337182,1751127092270,-781.13,0.00033423,9]
[368337183,1751127092280,-490.0,0.00033423,9]
[368337184,1751127092290,-1038.76,0.00033423,9]
[368337185,1751127092299,-490.0,0.00033423,9]
[368337186,1751127092308,-566.4,0.00033423,9]
[368337187,1751127092318,-490.0,0.00033423,9]
[368337188,1751127092327,-1376.27,0.00033423,9]
[368337189,1751127092336,-565.74,0.00033423,9]
[368337190,1751127092346,-537.95,0.00033423,9]
[368337191,1751127092355,-538.92,0.00033423,9]
[368337192,1751127092366,-970.04,0.00033423,9]
[368337193,1751127092375,-904.08,0.00033423,9]
[368337194,1751127092385,-1123.45,0.00033423,9]
[368337195,1751127092394,-1014.34,0.00033423,9]
[368337196,1751127092403,-490.0,0.00033423,9]
[368337197,1751127092412,-490.0,0.00033423,9]
[368337198,1751127092421,-806.78,0.00033423,9]
[368337199,1751127092430,-490.0,0.00033423,9]
[368337200,1751127092440,-1037.25,0.00033423,9]
[368337201,1751127092449,-884.11,0.00033423,9]
[368337202,1751127092458,-490.0,0.00033423,9]
[368337203,1751127092467,-490.0,0.00033423,9]
[368337204,1751127092478,-663.58,0.00033423,9]
[368337205,1751127092487,-744.62,0.00033423,9]
[368337206,1751127092497,-490.0,0.00033423,9]
[368337207,1751127092506,-856.54,0.00033423,9]
[368337208,1751127092516,-1654.81,0.00033423,9]
[368337209,1751127092525,-490.0,0.00033423,9]
[368337210,1751127092534,-763.15,0.00033423,9]
[368337211,1751127092543,-405.23510563,0.00033423,9]
[368337212,1751127092553,-1914.18,0.00033423,9]
[368337213,1751127092562,-745.71,0.00033424,9]
[368337214,1751127092571,-490.0,0.00033424,9]
[368337215,1751127092580,-490.0,0.00033424,9]
[368337216,1751127092590,-490.0,0.00033424,9]
[368337217,1751127092599,-490.0,0.00033424,9]
[368337218,1751127092608,-511.6009645,0.00033424,9]
[368337219,1751127092617,-1229.39,0.00033424,9]
[368337220,1751127092626,-772.85,0.00033424,9]
[368337221,1751127092635,-504.22,0.00033424,9]
[368337222,1751127092644,-490.0,0.00033424,9]
[368337223,1751127092654,-490.0,0.00033424,9]
[368337224,1751127092663,-490.0,0.00033424,9]
[368337225,1751127092672,-972.76,0.00033424,9]
[368337226,1751127092682,-887.64,0.00033424,9]
[368337227,1751127092693,-1195.67569277,0.00033567,2]
[368337228,1751127092702,-201.9624856,0.00033567,29]
[368337229,1751127092712,-490.0,0.00033662,9]
[368337230,1751127092721,-490.0,0.00033662,9]
[368337231,1751127092731,-500.0,0.00033662,9]
[368337232,1751127092740,-490.0,0.00033662,9]
[368337233,1751127092749,-490.0,0.00033662,9]
[368337234,1751127092758,-490.0,0.00033662,9]
[368337235,1751127092768,-493.27882395,0.00033662,9]
[368337236,1751127092777,-490.0,0.00033686,9]
[368337237,1751127092786,-490.0,0.00033686,9]
[368337238,1751127092796,-547.99,0.00033686,9]
[368337239,1751127092805,-547.99,0.00033686,9]
[368337240,1751127092815,-490.0,0.00033686,9]
[368337241,1751127092823,-740.17,0.00033686,9]
[368337242,1751127092832,-558.87,0.00033686,9]
[368337243,1751127092841,-803.17,0.00033686,9]
[368337244,1751127092850,-1019.29,0.00033686,9]
[368337245,1751127092860,-1175.88,0.00033686,9]
[368337246,1751127092869,-1149.58,0.00033686,9]
[368337247,1751127092878,-490.0,0.00033686,9]
[368337248,1751127092888,-2359.85,0.00033686,9]
[368337249,1751127092897,-905.54,0.00033686,9]
[368337250,1751127092907,-536.0,0.00033686,9]
[368337251,1751127092917,-1256.72,0.00033686,9]
[368337252,1751127092926,-520.09,0.00033686,9]
[368337253,1751127092935,-917.86,0.00033686,9]
[368337254,1751127092944,-523.33,0.00033686,9]
[368337255,1751127092953,-945.59,0.00033686,9]
[368337256,1751127092962,-1025.49,0.00033686,9]
[368337257,1751127092972,-896.35,0.00033686,9]
[368337258,1751127092981,-168.87258988,0.00033687,15]
[368337259,1751127092990,-579.65,0.00033687,9]
[368337260,1751127092999,-490.0,0.00033687,9]
[368337261,1751127093008,-490.0,0.00033687,9]
[368337262,1751127093017,-2521.53,0.00033687,9]
[368337263,1751127093027,-490.0,0.00033687,9]
[368337264,1751127093036,-1502.17,0.00033687,9]
[368337265,1751127093045,-1007.242306,0.00033687,9]
[368337266,1751127093055,-4646.96,0.00033687,9]
[368337267,1751127093064,-1743.591254,0.00033687,9]
[368337268,1751127093074,-2711.24,0.00033687,9]
[368337269,1751127093084,-817.339594,0.00033687,9]
[368337270,1751127093093,-1104.91,0.00033687,9]
[368337271,1751127093102,-181.414053,0.00033687,9]
[368337272,1751127093112,-1694.66,0.00033687,9]
[368337273,1751127093121,-1258.13,0.00033687,9]
[368337274,1751127093131,-707.58,0.00033687,9]
[368337275,1751127093141,-638.59,0.00033687,9]
[368337276,1751127093150,-1388.25,0.00033687,9]
[368337277,1751127093160,-940.08,0.00033687,9]
[368337278,1751127093170,-4320.7,0.00033687,9]
[368337279,1751127093180,-1237.79,0.00033687,9]
[368337280,1751127093190,-1387.21,0.00033687,9]
[368337281,1751127093200,-490.0,0.00033687,9]
[368337282,1751127093209,-954.12,0.00033687,9]
[368337283,1751127093219,-813.75,0.00033687,9]
[368337284,1751127093228,-3596.5,0.00033687,9]
[368337285,1751127093238,-1282.84,0.00033687,9]
[368337286,1751127093248,-1123.66,0.00033687,9]
[368337287,1751127093258,-852.99,0.00033687,9]
[368337288,1751127093268,-490.0,0.00033687,9]
[368337289,1751127093278,-551.2240401,0.00033697,9]
[368337290,1751127093287,-490.0,0.00033697,9]
[368337291,1751127093300,-490.0,0.00033697,9]
[368337292,1751127093310,-422.83,0.00033697,9]
[368337293,1751127093320,-490.0,0.00033697,9]
[368337294,1751127093330,-490.0,0.00033697,9]
[368337295,1751127093340,-490.0,0.00033697,9]
[368337296,1751127093350,-739.08,0.00033697,9]
[368337297,1751127093360,-490.0,0.00033697,9]
[368337298,1751127093371,-953.0,0.00033697,9]
[368337299,1751127093381,-1866.06,0.00033697,9]
[368337300,1751127093390,-490.0,0.00033697,9]
[368337301,1751127093400,-944.26,0.00033697,9]
[368337302,1751127093410,-150.0,0.00033697,2]
[368337303,1751127093421,-490.0,0.00033697,9]
[368337304,1751127093430,-490.0,0.00033697,9]
[368337305,1751127093441,-490.0,0.00033697,9]
[368337306,1751127093451,-490.0,0.00033697,9]
[368337307,1751127093461,-490.0,0.00033697,9]
[368337308,1751127093471,-994.17,0.00033697,9]
[368337309,1751127093481,-490.0,0.00033697,9]
[368337310,1751127093490,-917.26,0.00033697,9]
[368337311,1751127093500,-834.16,0.00033697,9]
[368337312,1751127093509,-490.0,0.00033697,9]
[368337313,1751127093519,-490.0,0.00033697,9]
[368337314,1751127093528,-668.47,0.00033697,9]
[368337315,1751127093538,-490.0,0.00033697,9]
[368337316,1751127093547,-490.0,0.00033697,9]
[368337317,1751127093557,-573.62,0.00033697,9]
[368337318,1751127093566,-490.0,0.00033697,9]
[368337319,1751127093576,-627.55,0.00033697,9]
[368337320,1751127093585,-595.52,0.00033697,9]
[368337321,1751127093595,-490.0,0.00033697,9]
[368337322,1751127093605,-490.0,0.00033697,9]
[368337323,1751127093614,-490.0,0.00033697,9]
[368337324,1751127093623,-490.0,0.00033697,9]
[368337325,1751127093633,-490.0,0.00033697,9]
[368337326,1751127093642,-543.51,0.00033697,9]
[368337327,1751127093652,-490.0,0.00033697,9]
[368337328,1751127093661,-689.4,0.00033697,9]
[368337329,1751127093671,-490.0,0.00033697,9]
[368337330,1751127093680,-490.0,0.00033697,9]
[368337331,1751127093690,-490.0,0.00033697,9]
[368337332,1751127093700,-338.93797501,0.00033697,9]
[368337333,1751127093710,-490.0,0.00033697,9]
[368337334,1751127093721,-490.0,0.00033697,9]
[368337335,1751127093730,-1176.69,0.00033697,9]
[368337336,1751127093739,-1075.47,0.00033697,9]
[368337337,1751127093749,-490.0,0.00033697,9]
[368337338,1751127093758,-688.03,0.00033697,9]
[368337339,1751127093767,-490.0,0.00033697,9]
[368337340,1751127093777,-490.0,0.00033697,9]
[368337341,1751127093786,-529.89,0.00033697,9]
[368337342,1751127093796,-490.0,0.00033697,9]
[368337343,1751127093806,-776.12,0.00033697,9]
[368337344,1751127093816,-490.0,0.00033697,9]
[368337345,1751127093826,-1287.13,0.00033697,9]
[368337346,1751127093835,-490.0,0.00033697,9]
[368337347,1751127093845,-490.0,0.00033697,9]
[368337348,1751127093855,-490.0,0.00033697,9]
[368337349,1751127093864,-707.77,0.00033697,9]
[368337350,1751127093874,-519.0,0.00033697,9]
[368337351,1751127093884,-608.26,0.00033697,9]
[368337352,1751127093894,-490.0,0.00033697,9]
[368337353,1751127093904,-490.0,0.00033697,9]
[368337354,1751127093914,-490.0,0.00033697,9]
[368337355,1751127093923,-490.0,0.00033697,9]
[368337356,1751127093933,-490.0,0.00033697,9]
[368337357,1751127093943,-2039.39,0.00033697,9]
[368337358,1751127093953,-543.97,0.00033697,9]
[368337359,1751127093962,-490.0,0.00033697,9]
[368337360,1751127093972,-1032.02,0.00033697,9]
[368337361,1751127093981,-835.31,0.00033697,9]
[368337362,1751127093991,-490.0,0.00033697,9]
[368337363,1751127094001,-955.27,0.00033697,9]
[368337364,1751127094010,-437.44243267,0.00033697,9]
[368337365,1751127094020,-368.59352004,0.00033697,9]
[368337366,1751127094030,-634.12,0.00033697,9]
[368337367,1751127094041,-1983.49,0.00033697,9]
[368337368,1751127094051,-567.9,0.00033697,9]
[368337369,1751127094061,-490.0,0.00033697,9]
[368337370,1751127094070,-1131.2,0.00033697,9]
[368337371,1751127094080,-608.07409668,0.00033697,9]
[368337372,1751127094090,-490.0,0.00033697,9]
[368337373,1751127094099,-1007.05,0.00033697,9]
[368337374,1751127094109,-1439.67,0.00033697,9]
[368337375,1751127094118,-663.27,0.00033697,9]
[368337376,1751127094128,-490.0,0.00033697,9]
[368337377,1751127094138,-1982.75,0.00033697,9]
[368337378,1751127094147,-1134.06,0.00033697,9]
[368337379,1751127094157,-611.28,0.00033697,9]
[368337380,1751127094167,-1774.05,0.00033697,9]
[368337381,1751127094176,-1393.8,0.00033697,9]
[368337382,1751127094186,-720.46,0.00033697,9]
[368337383,1751127094197,-1542.14,0.00033697,9]
[368337384,1751127094207,-490.0,0.00033697,9]
[368337385,1751127094217,-490.0,0.00033697,9]
[368337386,1751127094227,-490.0,0.00033697,9]
[368337387,1751127094236,-620.36,0.00033697,9]
[368337388,1751127094246,-2456.76,0.00033697,9]
[368337389,1751127094255,-776.94,0.00033697,9]
[368337390,1751127094265,-558.12,0.00033697,9]
[368337391,1751127094274,-598.74321545,0.00033697,9]
[368337392,1751127094284,-1690.62,0.00033697,9]
[368337393,1751127094294,-1227.1,0.00033697,9]
[368337394,1751127094303,-509.26,0.00033697,9]
[368337395,1751127094314,-2322.24,0.00033697,9]
[368337396,1751127094324,-1761.03,0.00033697,9]
[368337397,1751127094334,-1414.4,0.00033697,9]
[368337398,1751127094344,-503.53,0.00033697,9]
[368337399,1751127094353,-862.98,0.00033697,9]
[368337400,1751127094363,-490.0,0.00033697,9]
[368337401,1751127094373,-2730.6,0.00033697,9]
[368337402,1751127094382,-1553.67,0.00033697,9]
[368337403,1751127094392,-969.59,0.00033697,9]
[368337404,1751127094402,-586.07,0.00033697,9]
[368337405,1751127094412,-490.0,0.00033697,9]
[368337406,1751127094422,-1069.27,0.00033697,9]
[368337407,1751127094431,-734.06,0.00033697,9]
[368337408,1751127094441,-1270.58,0.00033697,9]
[368337409,1751127094450,-973.61,0.00033697,9]
[368337410,1751127094460,-490.0,0.00033697,9]
[368337411,1751127094469,-490.0,0.00033697,9]
[368337412,1751127094478,-973.79,0.00033697,9]
[368337413,1751127094487,-532.27,0.00033697,9]
[368337414,1751127094497,-1403.31,0.00033697,9]
[368337415,1751127094507,-524.8,0.00033697,9]
[368337416,1751127094517,-490.0,0.00033697,9]
[368337417,1751127094526,-781.13,0.00033697,9]
[368337418,1751127094536,-511.41337623,0.00033697,9]
[368337419,1751127094546,-1038.76,0.00033697,9]
[368337420,1751127094555,-490.0,0.00033697,9]
[368337421,1751127094564,-566.4,0.00033697,9]
[368337422,1751127094573,-490.0,0.00033697,9]
[368337423,1751127094583,-1376.27,0.00033697,9]
[368337424,1751127094593,-565.74,0.00033697,9]
[368337425,1751127094602,-537.95,0.00033697,9]
[368337426,1751127094612,-538.92,0.00033697,9]
[368337427,1751127094621,-970.04,0.00033697,9]
[368337428,1751127094631,-904.08,0.00033697,9]
[368337429,1751127094640,-1123.45,0.00033697,9]
[368337430,1751127094649,-1014.34,0.00033697,9]
[368337431,1751127094659,-490.0,0.00033697,9]
[368337432,1751127094669,-490.0,0.00033697,9]
[368337433,1751127094678,-490.0,0.00033697,9]
[368337434,1751127094687,-806.78,0.00033697,9]
[368337435,1751127094696,-1037.25,0.00033697,9]
[368337436,1751127094705,-884.11,0.00033697,9]
[368337437,1751127094715,-490.0,0.00033697,9]
[368337438,1751127094727,-663.58,0.00033697,9]
[368337439,1751127094737,-744.62,0.00033697,9]
[368337440,1751127094747,-490.0,0.00033697,9]
[368337441,1751127094756,-856.54,0.00033697,9]
[368337442,1751127094765,-1654.81,0.00033697,9]
[368337443,1751127094775,-490.0,0.00033697,9]
[368337444,1751127094784,-763.15,0.00033697,9]
[368337445,1751127094794,-1914.18,0.00033697,9]
[368337446,1751127094805,-745.71,0.00033698,9]
[368337447,1751127094814,-490.0,0.00033698,9]
[368337448,1751127094823,-490.0,0.00033698,9]
[368337449,1751127094837,-542.00639195,0.00033698,9]
[368337450,1751127094847,-490.0,0.00033698,9]
[368337451,1751127094856,-1229.39,0.00033698,9]
[368337452,1751127094866,-772.85,0.00033698,9]
[368337453,1751127094876,-504.22,0.00033698,9]
[368337454,1751127095131,-490.0,0.00033698,9]
[368337455,1751127095140,-490.0,0.00033698,9]
[368337456,1751127095150,-490.0,0.00033698,9]
[368337457,1751127095160,-972.76,0.00033698,9]
[368337458,1751127095170,-887.64,0.00033698,9]
[368337459,1751127095179,-18742.25,0.000337,14]
[368337460,1751127095189,-11174.00773786,0.00033735,2]
[368337461,1751127095203,-185.02695779,0.00033862,2]
[368337462,1751127095212,-462.4,0.00033879,2]
[368337463,1751127095222,-811.91,0.00033879,2]
[368337464,1751127095231,-925.18,0.00033879,2]
[368337465,1751127095241,-589.38121426,0.00033889,2]
[368337466,1751127095251,-233.22547444,0.00033889,2]
[368337467,1751127095262,-215.80662912,0.00033899,2]
[368337468,1751127095272,-1000.0,0.000339,120]
[368337469,1751127095282,-4500.0,0.000339,12]
[368337470,1751127095291,-490.0,0.00033936,9]
[368337471,1751127095300,-490.0,0.00033936,9]
[368337472,1751127095310,-502.31055176,0.00033936,9]
[368337473,1751127095319,-490.0,0.00033936,9]
[368337474,1751127095328,-201.9624856,0.00033948,29]
[368337475,1751127095338,-4238266.24435697,0.00033952,7]
[368337476,1751127095991,-24404.9790242,0.00033952,7]
[368337477,1751127096003,-1098.44,0.00033952,7]
[368337478,1751127096015,-1199.79298782,0.00033952,7]
[368337479,1751127096026,-1965.30427423,0.00033952,7]
[368337480,1751127096038,-1722.45027064,0.00033952,7]
[368337481,1751127096049,-256.8745783,0.00033952,7]
[368337482,1751127096069,-1000.0,0.00033952,7]
[368337483,1751127096080,-1018.23783383,0.00033952,7]
[368337484,1751127096091,-3468.95060435,0.00033952,7]
[368337485,1751127096102,-4127.13,0.00033952,7]
[368337486,1751127096114,-2148.23,0.00033952,7]
[368337487,1751127096133,-1205.11,0.00032042,9]
[368337488,1751127096143,-63765.5104595,0.00033952,7]
[368337489,1751127096154,-286.22892521,0.00033952,7]
[368337490,1751127096165,-2856.4526487,0.00033952,7]
[368337491,1751127096177,-5420.56844369,0.00033952,7]
[368337492,1751127096188,-5083.7384,0.00033952,7]
[368337493,1751127096199,-6056.45101002,0.00033952,7]
[368337494,1751127096211,-1182.54242648,0.00033952,7]
[368337495,1751127096623,-490.0,0.00030683,9]
[368337496,1751127096633,-490.0,0.00030947,9]
[368337497,1751127096644,-490.0,0.00030957,9]
[368337498,1751127096653,-490.0,0.00031221,9]
[368337499,1751127096664,-490.0,0.00031231,9]
[368337500,1751127096674,-189.43836161,0.00031495,9]
[368337501,1751127096686,-300.56163839,0.00031495,9]
[368337502,1751127096697,-483.18435818,0.00031505,9]
[368337503,1751127096706,-398.25707097,0.00031769,9]
[368337504,1751127096722,-66.29953918,0.00031769,9]
[368337505,1751127096732,-677.42,0.00032043,9]
[368337506,1751127096742,-443.46085147,0.00032316,9]
[368337507,1751127097260,-490.0,0.00030683,9]
[368337508,1751127097270,-95.58506,0.00030683,9]
[368337509,1751127097282,-395.95041859,0.00030683,9]
[368337510,1751127097292,-589.04520872,0.00030957,9]
[368337511,1751127097303,-761.64914853,0.00032316,9]
[368337512,1751127097313,-677.42,0.00032317,9]
[368337513,1751127097322,-1205.11,0.0003259,9]
[368337514,1751127097332,-677.42,0.00032591,9]
[368337515,1751127097342,-1205.11,0.00032864,9]
[368337516,1751127097352,-677.42,0.00032865,9]
[368337517,1751127097361,-216.27122416,0.00033138,9]
[368337518,1751127097425,-490.0,0.00030672,9]
[368337519,1751127097435,-490.0,0.00030946,9]
[368337520,1751127097446,-590.06402243,0.00033138,9]
[368337521,1751127097457,-398.77475341,0.00033138,9]
[368337522,1751127097467,-677.42,0.00033139,9]
[368337523,1751127097477,-1205.11,0.00033412,9]
[368337524,1751127097486,-677.42,0.00033413,9]
[368337525,1751127097496,-1205.11,0.00033686,9]
[368337526,1751127097507,-677.42,0.00033687,9]
[368337527,1751127097518,-263.23383539,0.00033871,2]
[368337528,1751127097528,-62712.27451412,0.00033952,7]
[368337529,1751127097544,-365846.8058188,0.00033952,7]
[368337530,1751127097657,-490.0,0.0003122,9]
[368337531,1751127097667,-1075.01092001,0.00033952,7]
[368337532,1751127099027,-205.0,0.00025793,2]
[368337533,1751127099036,-205.0,0.00028903,7]
[368337534,1751127099045,-2157.96055017,0.00030409,2]
[368337535,1751127099055,-277.66,0.00030662,2]
[368337536,1751127099064,-2337.69,0.00030663,2]
[368337537,1751127099073,-490.0,0.00030672,9]
[368337538,1751127099084,-492.28508474,0.00030683,9]
[368337539,1751127099094,-490.0,0.00030683,9]
[368337540,1751127099103,-490.0,0.00030683,9]
[368337541,1751127099112,-172.83525383,0.00030946,9]
[368337542,1751127099122,-490.0,0.00031494,9]
[368337543,1751127099131,-490.0,0.00031768,9]
[368337544,1751127099141,-205.0,0.00032012,12]
[368337545,1751127099150,-490.0,0.00032042,9]
[368337546,1751127099160,-490.0,0.00032316,9]
[368337547,1751127099170,-490.0,0.0003259,9]
[368337548,1751127099179,-490.0,0.00032864,9]
[368337549,1751127099188,-490.0,0.00033138,9]
[368337550,1751127099198,-490.0,0.00033412,9]
[368337551,1751127099207,-237690.00374295,0.00033952,7]
[368337552,1751127099234,-186.85,0.00030957,9]
[368337553,1751127099244,-411.87089794,0.00033686,9]
[368337554,1751127099259,-78.12910206,0.00033686,9]
[368337555,1751127099269,-255.61671789,0.00033952,7]
[368337558,1751127307960,-500.0,0.00034246,120]
[368337559,1751127307991,-46.0,0.00034263,120]
[368337560,1751127308215,-454.0,0.00034263,120]
[368337561,1751127308275,-46.0,0.00034537,120]
[368337562,1751127308542,-280.9631418,0.00034537,120]
[368337563,1751127308798,-173.0368582,0.00034537,120]
[368337564,1751127308852,-500.0,0.00034811,120]
[368337565,1751127308909,-500.0,0.00035085,120]
[368337566,1751127308961,-280.9631418,0.00035359,120]
[368337567,1751127308995,-546.0,0.00035359,120]
[368337568,1751127309107,-284.0,0.00035945,120]
[368337569,1751127309129,-865.87182785,0.00036,120]
[368337570,1751127310061,-1503.580768,0.00036,120]
[368337571,1751127310103,151.0,0.00029,120]
[368337572,1751127311712,-800.74,0.00036,120]
[368337573,1751127312031,151.0,0.000355,120]
[368337574,1751127332855,150.0,0.00018103,2]
[368337576,1751127361249,150.0,0.000359,120]
[368337577,1751127364633,909.39,0.00029829,120]
[368337578,1751127364857,909.39,0.00033558,120]
[368337580,1751127438215,-2449.498682,0.00028954,2]
[368337581,1751127438240,-1200.0,0.00029251,2]
[368337582,1751127438262,-600.0,0.00029251,2]
[368337583,1751127438285,-8149.64557567,0.00029252,2]
[368337584,1751127438308,-7600.85574233,0.00029863,2]
[368337585,1751127456330,-1000.0,0.00029863,2]
[368337587,1751127464762,-1000.0,0.00029863,2]
[368337589,1751127472385,-1000.0,0.00029863,2]
[368337591,1751127518568,173.0,0.00029,120]
[368337592,1751127519954,173.0,0.000351,120]
[368337595,1751127592576,284.0,0.00035945,120]